Workbook

Sheet Sheet1
A1: Largest Cylinder in a Cone Problem
B3: This DIGMath module lets you investigate
B4: the calculus problem of finding
B5: the dimensions of the largest cylinder
B6: that can be inscribed in a right circular cone.
A10: What is the radius R of the cone?
B11: (1 - 25 cubic units) | E11: R = | F11: =D12 -> 20
D12: 20
A15: What is the height H of the cone? | L15: The graph of the volume function = | O15: pr2(R - r) H/R
B16: (1 - 25 units) | E16: H = | F16: =D17/2 -> 6
D17: 12
L18: Select the radius r of the inscribed cylinder = | P18: =O20/10 -> 9.1 | Q18: units
A20: ="With a radius of "&TEXT(x0,"0.0") &" units, " -> With a radius of 9.1 units, | O20: 91 | P20: =Sheet2!H7+O20*(Sheet2!H8-Sheet2!H7)/100 -> 22.795
A21: =" the height of the can is "&TEXT(HH*(RR-r0)/RR,"0.0") &" units" -> the height of the can is 3.3 units | M21: The volume of this cylinder is V = | P21: =PI()*x0^2*(RR-r0)*HH/RR -> 851 | Q21: cubic units
M23: The value of the derivative is V' = | P23: =Sheet2!I36 -> 109
A25: Click each item below for suggestions and investigations
C26: Item 1
C27: Item 2
C28: Item 3
A31: To access/download all the DIGMath Apps for Calculus
A32: Click this link: | C32: DIGMath for Calculus
A34: Created by: Sheldon P. Gordon
A35: Farmingdale State College
A36: Development of this module was supported by the
A37: NSF's Division of Undergraduate Education
A38: under grants DUE-0310123 and DUE-0442160.

Sheet Sheet2
B1: r | C1: V | D1: V' | G1: xl= | H1: 0.5 | I1: =LOOKUP(Sheet1!P20,Sheet2!B3:B1002,Sheet2!C3:C1002)+LOOKUP(Sheet1!P20,Sheet2!B3:B1002,Sheet2!D3:D1002)*(H1-Sheet1!P20) -> 13496.38855 | J1: "=yl
G2: xr= | H2: 25 | I2: =LOOKUP(Sheet1!P20,Sheet2!B3:B1003,Sheet2!C3:C1003)+LOOKUP(Sheet1!P20,Sheet2!B3:B1003,Sheet2!D3:D1003)*(H2-Sheet1!P20) -> -1334.807659 | J2: "=yR
A3: 0 | B3: 0.5 | C3: =PI()*B3^2*(RR-B3)*HH/RR -> 5 | D3: =PI()*(2*RR*B3-3*B3^2)*HH/RR -> 18.14269757
A4: 1 | B4: =B3+dx -> 0.60 | C4: =IF(PI()*B4^2*(RR-B4)*HH/RR<0,0,PI()*B4^2*(RR-B4)*HH/RR) -> 7 | D4: 21.53296739
A5: 2 | B5: 0.70 | C5: 9 | D5: 24.86892787 | G5: delta x = | H5: =(xMax-xMin)/250 -> 0.098
A6: 3 | B6: 0.79 | C6: 11 | D6: 28.15057901
A7: 4 | B7: 0.89 | C7: 14 | D7: 31.3779208 | G7: xMin = | H7: 0.5 | I7: =C3 -> 4.594579256
A8: 5 | B8: 0.99 | C8: 18 | D8: 34.55095326 | G8: xMax = | H8: 25 | I8: =C83 -> 764.3667362
A9: 6 | B9: 1.09 | C9: 21 | D9: 37.66967638
A10: 7 | B10: 1.19 | C10: 25 | D10: 40.73409015
A11: 8 | B11: 1.28 | C11: 29 | D11: 43.74419459 | G11: Point
A12: 9 | B12: 1.38 | C12: 34 | D12: 46.69998968 | G12: =x0 -> 9.1 | H12: 0
A13: 10 | B13: 1.48 | C13: 38 | D13: 49.60147543
A14: 11 | B14: 1.58 | C14: 43 | D14: 52.44865185 | G14: Horizontal Line
A15: 12 | B15: 1.68 | C15: 49 | D15: 55.24151892 | G15: 0 | H15: 0
A16: 13 | B16: 1.77 | C16: 54 | D16: 57.98007665 | G16: =G12 -> 9.1 | H16: 0
A17: 14 | B17: 1.87 | C17: 60 | D17: 60.66432504
A18: 15 | B18: 1.97 | C18: 66 | D18: 63.29426409 | G18: Diagnonal Line
A19: 16 | B19: 2.07 | C19: 72 | D19: 65.8698938 | G19: 0 | H19: 200
A20: 17 | B20: 2.17 | C20: 79 | D20: 68.39121417 | G20: 997 | H20: 0
A21: 18 | B21: 2.26 | C21: 86 | D21: 70.8582252
A22: 19 | B22: 2.36 | C22: 93 | D22: 73.27092689
A23: 20 | B23: 2.46 | C23: 100 | D23: 75.62931924 | G23: Point on curve | I23: y'
A24: 21 | B24: 2.56 | C24: 108 | D24: 77.93340225 | G24: x= | H24: =G12*H5 -> 0.8918
A25: 22 | B25: 2.66 | C25: 115 | D25: 80.18317592 | F25: x0 = | G25: =r0 -> 9.1 | H25: =LOOKUP(x0,B3:B84,C3:C84) -> 775.8595935 | I25: =LOOKUP(x0,B3:B84,D3:D84) -> 116.7922896
A26: 23 | B26: 2.75 | C26: 123 | D26: 82.37864024 | F26: y0 = | G26: =IF(Sheet1!$P$21<0,0,Sheet1!$P$21) -> 851 | H26: 0 | I26: 0
A27: 24 | B27: 2.85 | C27: 131 | D27: 84.51979523
A28: 25 | B28: 2.95 | C28: 140 | D28: 86.60664088 | G28: =(x0+2*h)*y0 -> 17949.93438
A29: 26 | B29: 3.05 | C29: 148 | D29: 88.63917718
A30: 27 | B30: 3.15 | C30: 157 | D30: 90.61740415 | G30: =PI()*r0^2*(RR-r0)*HH/RR -> 850.7077906 | H30: =r0^2*HH -> 496.86
A31: 28 | B31: 3.24 | C31: 166 | D31: 92.54132177 | H31: =(RR-r0)/RR -> 0.545
A32: 29 | B32: 3.34 | C32: 175 | D32: 94.41093005 | H32: =RR -> 20
A33: 30 | B33: 3.44 | C33: 185 | D33: 96.226229 | H33: =r0 -> 9.1
A34: 31 | B34: 3.54 | C34: 194 | D34: 97.9872186 | G34: x | H34: y | I34: y'
A35: 32 | B35: 3.64 | C35: 204 | D35: 99.69389886 | G35: =x0 -> 9.1 | H35: 0 | I35: 0
A36: 33 | B36: 3.73 | C36: 214 | D36: 101.3462698 | G36: =x0 -> 9.1 | H36: =PI()*x0^2*(RR-x0)*HH/RR -> 850.7077906 | I36: =PI()*(2*RR*x0-3*x0^2)*HH/RR -> 108.9221589
A37: 34 | B37: 3.83 | C37: 224 | D37: 102.9443314
A38: 35 | B38: 3.93 | C38: 234 | D38: 104.4880836
A39: 36 | B39: 4.03 | C39: 244 | D39: 105.9775265
A40: 37 | B40: 4.13 | C40: 255 | D40: 107.4126601
A41: 38 | B41: 4.22 | C41: 265 | D41: 108.7934843
A42: 39 | B42: 4.32 | C42: 276 | D42: 110.1199992
A43: 40 | B43: 4.42 | C43: 287 | D43: 111.3922047
A44: 41 | B44: 4.52 | C44: 298 | D44: 112.6101009
A45: 42 | B45: 4.62 | C45: 309 | D45: 113.7736878
A46: 43 | B46: 4.71 | C46: 320 | D46: 114.8829653
A47: 44 | B47: 4.81 | C47: 331 | D47: 115.9379334
A48: 45 | B48: 4.91 | C48: 343 | D48: 116.9385923
A49: 46 | B49: 5.01 | C49: 354 | D49: 117.8849418
A50: 47 | B50: 5.11 | C50: 366 | D50: 118.7769819
A51: 48 | B51: 5.20 | C51: 378 | D51: 119.6147127
A52: 49 | B52: 5.30 | C52: 389 | D52: 120.3981342
A53: 50 | B53: 5.40 | C53: 401 | D53: 121.1272464
A54: 51 | B54: 5.50 | C54: 413 | D54: 121.8020491
A55: 52 | B55: 5.60 | C55: 425 | D55: 122.4225426
A56: 53 | B56: 5.69 | C56: 437 | D56: 122.9887267
A57: 54 | B57: 5.79 | C57: 449 | D57: 123.5006015
A58: 55 | B58: 5.89 | C58: 461 | D58: 123.9581669
A59: 56 | B59: 5.99 | C59: 474 | D59: 124.361423
A60: 57 | B60: 6.09 | C60: 486 | D60: 124.7103697
A61: 58 | B61: 6.18 | C61: 498 | D61: 125.0050072
A62: 59 | B62: 6.28 | C62: 510 | D62: 125.2453352
A63: 60 | B63: 6.38 | C63: 523 | D63: 125.431354
A64: 61 | B64: 6.48 | C64: 535 | D64: 125.5630633
A65: 62 | B65: 6.58 | C65: 547 | D65: 125.6404634
A66: 63 | B66: 6.67 | C66: 559 | D66: 125.6635541
A67: 64 | B67: 6.77 | C67: 572 | D67: =PI()*(2*RR*B67-3*B67^2)*HH/RR -> 125.6323355
A68: 65 | B68: =B67+dx -> 6.87 | C68: =IF(PI()*B68^2*(RR-B68)*HH/RR<0,0,PI()*B68^2*(RR-B68)*HH/RR) -> 584 | D68: 125.5468075
A69: 66 | B69: 6.97 | C69: 596 | D69: 125.4069702
A70: 67 | B70: 7.07 | C70: 609 | D70: 125.2128235
A71: 68 | B71: 7.16 | C71: 621 | D71: 124.9643675
A72: 69 | B72: 7.26 | C72: 633 | D72: 124.6616022
A73: 70 | B73: 7.36 | C73: 645 | D73: 124.3045275
A74: 71 | B74: 7.46 | C74: 657 | D74: 123.8931435
A75: 72 | B75: 7.56 | C75: 670 | D75: 123.4274501
A76: 73 | B76: 7.65 | C76: 682 | D76: 122.9074474
A77: 74 | B77: 7.75 | C77: 694 | D77: 122.3331354
A78: 75 | B78: 7.85 | C78: 706 | D78: 121.704514
A79: 76 | B79: 7.95 | C79: 718 | D79: 121.0215833
A80: 77 | B80: 8.05 | C80: 729 | D80: 120.2843432
A81: 78 | B81: 8.14 | C81: 741 | D81: 119.4927938
A82: 79 | B82: 8.24 | C82: 753 | D82: 118.6469351
A83: 80 | B83: 8.34 | C83: 764 | D83: 117.746767
B84: 8.44 | C84: 776 | D84: 116.7922896
B85: 8.54 | C85: 787 | D85: 115.7835028
B86: 8.63 | C86: 799 | D86: 114.7204067
B87: 8.73 | C87: 810 | D87: 113.6030013
B88: 8.83 | C88: 821 | D88: 112.4312865
B89: 8.93 | C89: 832 | D89: 111.2052623
B90: 9.03 | C90: 843 | D90: 109.9249289
B91: 9.12 | C91: 853 | D91: 108.5902861
B92: 9.22 | C92: 864 | D92: 107.2013339
B93: 9.32 | C93: 874 | D93: 105.7580724
B94: 9.42 | C94: 885 | D94: 104.2605016
B95: 9.52 | C95: 895 | D95: 102.7086214
B96: 9.61 | C96: 905 | D96: 101.1024319
B97: 9.71 | C97: 915 | D97: 99.44193308
B98: 9.81 | C98: 924 | D98: 97.72712489
B99: 9.91 | C99: 934 | D99: 95.95800736
B100: 10.01 | C100: 943 | D100: 94.13458048
B101: 10.10 | C101: 952 | D101: 92.25684427
B102: 10.20 | C102: 961 | D102: 90.32479872
B103: 10.30 | C103: 970 | D103: 88.33844383
B104: 10.40 | C104: 978 | D104: 86.29777959
B105: 10.50 | C105: 987 | D105: 84.20280602
B106: 10.59 | C106: 995 | D106: 82.0535231
B107: 10.69 | C107: 1003 | D107: 79.84993085
B108: 10.79 | C108: 1011 | D108: 77.59202925
B109: 10.89 | C109: 1018 | D109: 75.27981832
B110: 10.99 | C110: 1025 | D110: 72.91329804
B111: 11.08 | C111: 1032 | D111: 70.49246842
B112: 11.18 | C112: 1039 | D112: 68.01732946
B113: 11.28 | C113: 1046 | D113: 65.48788116
B114: 11.38 | C114: 1052 | D114: 62.90412353
B115: 11.48 | C115: 1058 | D115: 60.26605655
B116: 11.57 | C116: 1064 | D116: 57.57368023
B117: 11.67 | C117: 1069 | D117: 54.82699457
B118: 11.77 | C118: 1075 | D118: 52.02599956
B119: 11.87 | C119: 1080 | D119: 49.17069522
B120: 11.97 | C120: 1084 | D120: 46.26108154
B121: 12.06 | C121: 1089 | D121: 43.29715852
B122: 12.16 | C122: 1093 | D122: 40.27892615
B123: 12.26 | C123: 1096 | D123: 37.20638445
B124: 12.36 | C124: 1100 | D124: 34.07953341
B125: 12.46 | C125: 1103 | D125: 30.89837302
B126: 12.55 | C126: 1106 | D126: 27.6629033
B127: 12.65 | C127: 1109 | D127: 24.37312423
B128: 12.75 | C128: 1111 | D128: 21.02903582
B129: 12.85 | C129: 1113 | D129: 17.63063808
B130: 12.95 | C130: 1114 | D130: 14.17793099
B131: 13.04 | C131: 1115 | D131: =PI()*(2*RR*B131-3*B131^2)*HH/RR -> 10.67091456
B132: =B131+dx -> 13.14 | C132: =IF(PI()*B132^2*(RR-B132)*HH/RR<0,0,PI()*B132^2*(RR-B132)*HH/RR) -> 1116 | D132: 7.109588795
B133: 13.24 | C133: 1117 | D133: 3.493953686
B134: 13.34 | C134: 1117 | D134: -0.1759907638
B135: 13.44 | C135: 1117 | D135: -3.900244554
B136: 13.53 | C136: 1116 | D136: -7.678807684
B137: 13.63 | C137: 1115 | D137: -11.51168016
B138: 13.73 | C138: 1114 | D138: -15.39886197
B139: 13.83 | C139: 1112 | D139: -19.34035312
B140: 13.93 | C140: 1110 | D140: -23.33615361
B141: 14.02 | C141: 1108 | D141: -27.38626344
B142: 14.12 | C142: 1105 | D142: -31.49068262
B143: 14.22 | C143: 1102 | D143: -35.64941113
B144: 14.32 | C144: 1098 | D144: -39.86244899
B145: 14.42 | C145: 1094 | D145: -44.12979618
B146: 14.51 | C146: 1089 | D146: -48.45145272
B147: 14.61 | C147: 1084 | D147: -52.82741859
B148: 14.71 | C148: 1079 | D148: -57.25769381
B149: 14.81 | C149: 1073 | D149: -61.74227837
B150: 14.91 | C150: 1067 | D150: -66.28117227
B151: 15.00 | C151: 1060 | D151: -70.8743755
B152: 15.10 | C152: 1053 | D152: -75.52188808
B153: 15.20 | C153: 1045 | D153: -80.22371
B154: 15.30 | C154: 1037 | D154: -84.97984126
B155: 15.40 | C155: 1029 | D155: -89.79028186
B156: 15.49 | C156: 1020 | D156: -94.6550318
B157: 15.59 | C157: 1010 | D157: -99.57409108
B158: 15.69 | C158: 1000 | D158: -104.5474597
B159: 15.79 | C159: 989 | D159: -109.5751377
B160: 15.89 | C160: 979 | D160: -114.657125
B161: 15.98 | C161: 967 | D161: -119.7934216
B162: 16.08 | C162: 955 | D162: -124.9840276
B163: 16.18 | C163: 943 | D163: -130.2289429
B164: 16.28 | C164: 930 | D164: -135.5281676
B165: 16.38 | C165: 916 | D165: -140.8817016
B166: 16.47 | C166: 902 | D166: -146.2895449
B167: 16.57 | C167: 887 | D167: -151.7516976
B168: 16.67 | C168: 872 | D168: -157.2681597
B169: 16.77 | C169: 856 | D169: -162.838931
B170: 16.87 | C170: 840 | D170: -168.4640117
B171: 16.96 | C171: 823 | D171: -174.1434018
B172: 17.06 | C172: 806 | D172: -179.8771012
B173: 17.16 | C173: 788 | D173: -185.6651099
B174: 17.26 | C174: 770 | D174: -191.507428
B175: 17.36 | C175: 751 | D175: -197.4040554
B176: 17.45 | C176: 731 | D176: -203.3549921
B177: 17.55 | C177: 711 | D177: -209.3602382
B178: 17.65 | C178: 690 | D178: -215.4197937
B179: 17.75 | C179: 669 | D179: -221.5336584
B180: 17.85 | C180: 647 | D180: -227.7018325
B181: 17.94 | C181: 624 | D181: -233.924316
B182: 18.04 | C182: 601 | D182: -240.2011088
B183: 18.14 | C183: 577 | D183: -246.5322109
B184: 18.24 | C184: 552 | D184: -252.9176224
B185: 18.34 | C185: 527 | D185: -259.3573432
B186: 18.43 | C186: 502 | D186: -265.8513734
B187: 18.53 | C187: 475 | D187: -272.3997129
B188: 18.63 | C188: 448 | D188: -279.0023617
B189: 18.73 | C189: 420 | D189: -285.6593199
B190: 18.83 | C190: 392 | D190: -292.3705874
B191: 18.92 | C191: 363 | D191: -299.1361643
B192: 19.02 | C192: 334 | D192: -305.9560505
B193: 19.12 | C193: 303 | D193: -312.830246
B194: 19.22 | C194: 272 | D194: -319.7587509
B195: 19.32 | C195: 241 | D195: =PI()*(2*RR*B195-3*B195^2)*HH/RR -> -326.7415651
B196: =B195+dx -> 19.41 | C196: =IF(PI()*B196^2*(RR-B196)*HH/RR<0,0,PI()*B196^2*(RR-B196)*HH/RR) -> 208 | D196: -333.7786887
B197: 19.51 | C197: 175 | D197: -340.8701216
B198: 19.61 | C198: 141 | D198: -348.0158638
B199: 19.71 | C199: 107 | D199: -355.2159154
B200: 19.81 | C200: 72 | D200: -362.4702763
... 53 more rows

Sheet Sheet3
A1: =xMin -> 0.5 | B1: =9 -> 9
A2: =A1+dx -> 0.598 | B2: =9 -> 9
A3: 0.696 | B3: =9 -> 9
A4: 0.794 | B4: =9 -> 9
A5: 0.892 | B5: =9 -> 9
A6: 0.99 | B6: =9 -> 9
A7: 1.088 | B7: =9 -> 9
A8: 1.186 | B8: =9 -> 9
A9: 1.284 | B9: =9 -> 9
A10: 1.382 | B10: =9 -> 9
A11: 1.48 | B11: =9 -> 9
A12: 1.578 | B12: =9 -> 9
A13: 1.676 | B13: =9 -> 9
A14: 1.774 | B14: =9 -> 9
A15: 1.872 | B15: =9 -> 9
A16: 1.97 | B16: =9 -> 9
A17: 2.068 | B17: =9 -> 9
A18: 2.166 | B18: =9 -> 9
A19: 2.264 | B19: =9 -> 9
A20: 2.362 | B20: =9 -> 9
A21: 2.46 | B21: =9 -> 9
A22: 2.558 | B22: =9 -> 9
A23: 2.656 | B23: =9 -> 9
A24: 2.754 | B24: =9 -> 9
A25: 2.852 | B25: =9 -> 9
A26: 2.95 | B26: =9 -> 9
A27: 3.048 | B27: =9 -> 9
A28: 3.146 | B28: =9 -> 9
A29: 3.244 | B29: =9 -> 9
A30: 3.342 | B30: =9 -> 9
A31: 3.44 | B31: =9 -> 9
A32: 3.538 | B32: =9 -> 9
A33: 3.636 | B33: =9 -> 9
A34: 3.734 | B34: =9 -> 9
A35: 3.832 | B35: =9 -> 9
A36: 3.93 | B36: =9 -> 9
A37: 4.028 | B37: =9 -> 9
A38: 4.126 | B38: =9 -> 9
A39: 4.224 | B39: =9 -> 9
A40: 4.322 | B40: =9 -> 9
A41: 4.42 | B41: =9 -> 9
A42: 4.518 | B42: =9 -> 9
A43: 4.616 | B43: =9 -> 9
A44: 4.714 | B44: =9 -> 9
A45: 4.812 | B45: =9 -> 9
A46: 4.91 | B46: =9 -> 9
A47: 5.008 | B47: =9 -> 9
A48: 5.106 | B48: =9 -> 9
A49: 5.204 | B49: =9 -> 9
A50: 5.302 | B50: =9 -> 9
A51: 5.4 | B51: =9 -> 9
A52: 5.498 | B52: =9 -> 9
A53: 5.596 | B53: =9 -> 9
A54: 5.694 | B54: =9 -> 9
A55: 5.792 | B55: =9 -> 9
A56: 5.89 | B56: =9 -> 9
A57: 5.988 | B57: =9 -> 9
A58: 6.086 | B58: =9 -> 9
A59: 6.184 | B59: =9 -> 9
A60: 6.282 | B60: =9 -> 9
A61: 6.38 | B61: =9 -> 9
A62: 6.478 | B62: =9 -> 9
A63: 6.576 | B63: =9 -> 9
A64: 6.674 | B64: =9 -> 9
A65: 6.772 | B65: =9 -> 9
A66: =A65+dx -> 6.87 | B66: =9 -> 9
A67: 6.968 | B67: =9 -> 9
A68: 7.066 | B68: =9 -> 9
A69: 7.164 | B69: =9 -> 9
A70: 7.262 | B70: =9 -> 9
A71: 7.36 | B71: =9 -> 9
A72: 7.458 | B72: =9 -> 9
A73: 7.556 | B73: =9 -> 9
A74: 7.654 | B74: =9 -> 9
A75: 7.752 | B75: =9 -> 9
A76: 7.85 | B76: =9 -> 9
A77: 7.948 | B77: =9 -> 9
A78: 8.046 | B78: =9 -> 9
A79: 8.144 | B79: =9 -> 9
A80: 8.242 | B80: =9 -> 9
A81: 8.34 | B81: =9 -> 9
A82: 8.438 | B82: =9 -> 9
A83: 8.536 | B83: =9 -> 9
A84: 8.634 | B84: =9 -> 9
A85: 8.732 | B85: =9 -> 9
A86: 8.83 | B86: =9 -> 9
A87: 8.928 | B87: =9 -> 9
A88: 9.026 | B88: =9 -> 9
A89: 9.124 | B89: =9 -> 9
A90: 9.222 | B90: =9 -> 9
A91: 9.32 | B91: =9 -> 9
A92: 9.418 | B92: =9 -> 9
A93: 9.516 | B93: =9 -> 9
A94: 9.614 | B94: =9 -> 9
A95: 9.712 | B95: =9 -> 9
A96: 9.81 | B96: =9 -> 9
A97: 9.908 | B97: =9 -> 9
A98: 10.006 | B98: =9 -> 9
A99: 10.104 | B99: =9 -> 9
A100: 10.202 | B100: =9 -> 9
A101: 10.3 | B101: =9 -> 9
A102: 10.398 | B102: =9 -> 9
A103: 10.496 | B103: =9 -> 9
A104: 10.594 | B104: =9 -> 9
A105: 10.692 | B105: =9 -> 9
A106: 10.79 | B106: =9 -> 9
A107: 10.888 | B107: =9 -> 9
A108: 10.986 | B108: =9 -> 9
A109: 11.084 | B109: =9 -> 9
A110: 11.182 | B110: =9 -> 9
A111: 11.28 | B111: =9 -> 9
A112: 11.378 | B112: =9 -> 9
A113: 11.476 | B113: =9 -> 9
A114: 11.574 | B114: =9 -> 9
A115: 11.672 | B115: =9 -> 9
A116: 11.77 | B116: =9 -> 9
A117: 11.868 | B117: =9 -> 9
A118: 11.966 | B118: =9 -> 9
A119: 12.064 | B119: =9 -> 9
A120: 12.162 | B120: =9 -> 9
A121: 12.26 | B121: =9 -> 9
A122: 12.358 | B122: =9 -> 9
A123: 12.456 | B123: =9 -> 9
A124: 12.554 | B124: =9 -> 9
A125: 12.652 | B125: =9 -> 9
A126: 12.75 | B126: =9 -> 9
A127: 12.848 | B127: =9 -> 9
A128: 12.946 | B128: =9 -> 9
A129: 13.044 | B129: =9 -> 9
A130: =A129+dx -> 13.142 | B130: =9 -> 9
A131: 13.24 | B131: =9 -> 9
A132: 13.338 | B132: =9 -> 9
A133: 13.436 | B133: =9 -> 9
A134: 13.534 | B134: =9 -> 9
A135: 13.632 | B135: =9 -> 9
A136: 13.73 | B136: =9 -> 9
A137: 13.828 | B137: =9 -> 9
A138: 13.926 | B138: =9 -> 9
A139: 14.024 | B139: =9 -> 9
A140: 14.122 | B140: =9 -> 9
A141: 14.22 | B141: =9 -> 9
A142: 14.318 | B142: =9 -> 9
A143: 14.416 | B143: =9 -> 9
A144: 14.514 | B144: =9 -> 9
A145: 14.612 | B145: =9 -> 9
A146: 14.71 | B146: =9 -> 9
A147: 14.808 | B147: =9 -> 9
A148: 14.906 | B148: =9 -> 9
A149: 15.004 | B149: =9 -> 9
A150: 15.102 | B150: =9 -> 9
A151: 15.2 | B151: =9 -> 9
A152: 15.298 | B152: =9 -> 9
A153: 15.396 | B153: =9 -> 9
A154: 15.494 | B154: =9 -> 9
A155: 15.592 | B155: =9 -> 9
A156: 15.69 | B156: =9 -> 9
A157: 15.788 | B157: =9 -> 9
A158: 15.886 | B158: =9 -> 9
A159: 15.984 | B159: =9 -> 9
A160: 16.082 | B160: =9 -> 9
A161: 16.18 | B161: =9 -> 9
A162: 16.278 | B162: =9 -> 9
A163: 16.376 | B163: =9 -> 9
A164: 16.474 | B164: =9 -> 9
A165: 16.572 | B165: =9 -> 9
A166: 16.67 | B166: =9 -> 9
A167: 16.768 | B167: =9 -> 9
A168: 16.866 | B168: =9 -> 9
A169: 16.964 | B169: =9 -> 9
A170: 17.062 | B170: =9 -> 9
A171: 17.16 | B171: =9 -> 9
A172: 17.258 | B172: =9 -> 9
A173: 17.356 | B173: =9 -> 9
A174: 17.454 | B174: =9 -> 9
A175: 17.552 | B175: =9 -> 9
A176: 17.65 | B176: =9 -> 9
A177: 17.748 | B177: =9 -> 9
A178: 17.846 | B178: =9 -> 9
A179: 17.944 | B179: =9 -> 9
A180: 18.042 | B180: =9 -> 9
A181: 18.14 | B181: =9 -> 9
A182: 18.238 | B182: =9 -> 9
A183: 18.336 | B183: =9 -> 9
A184: 18.434 | B184: =9 -> 9
A185: 18.532 | B185: =9 -> 9
A186: 18.63 | B186: =9 -> 9
A187: 18.728 | B187: =9 -> 9
A188: 18.826 | B188: =9 -> 9
A189: 18.924 | B189: =9 -> 9
A190: 19.022 | B190: =9 -> 9
A191: 19.12 | B191: =9 -> 9
A192: 19.218 | B192: =9 -> 9
A193: 19.316 | B193: =9 -> 9
A194: =A193+dx -> 19.414 | B194: =9 -> 9
A195: 19.512 | B195: =9 -> 9
A196: 19.61 | B196: =9 -> 9
A197: 19.708 | B197: =9 -> 9
A198: 19.806 | B198: =9 -> 9
A199: 19.904 | B199: =9 -> 9
A200: 20.002 | B200: =9 -> 9
... 803 more rows
